bitfinex/quotes_SOLUSD_20250726
["timestamp","ask_amount","ask_price","bid_price","bid_amount"]
[1753499296880,0.1760212,186.3,186.29,38.12]
[1753499299880,0.8460212,186.3,186.29,38.12]
[1753499302671,0.1760212,186.3,186.29,38.12]
[1753499302994,0.1760212,186.3,186.29,38.83]
[1753499303497,0.1760212,186.3,186.29,38.12]
[1753499303665,0.1760212,186.3,186.29,38.83]
[1753499305290,0.1760212,186.3,186.29,0.77]
[1753499305468,0.1760212,186.3,186.29,38.73]
[1753499306178,0.1760212,186.3,186.29,38.71]
[1753499306982,0.1760212,186.3,186.29,0.77]
[1753499307188,0.1760212,186.3,186.29,38.0]
[1753499312114,0.1760212,186.3,186.29,38.71]
[1753499312320,0.1760212,186.3,186.29,38.0]
[1753499313912,0.1760212,186.3,186.29,38.71]
[1753499315213,0.1760212,186.3,186.29,38.0]
[1753499318421,0.8560212,186.3,186.29,38.0]
[1753499318597,0.1760212,186.3,186.29,38.0]
[1753499322814,0.1760212,186.3,186.29,37.88]
[1753499326104,0.1760212,186.3,186.29,38.57]
[1753499327018,0.1760212,186.3,186.29,37.88]
[1753499327318,0.8560212,186.3,186.29,37.88]
[1753499329325,0.8560212,186.3,186.29,37.86]
[1753499329821,0.1760212,186.3,186.29,37.86]
[1753499334142,0.1760212,186.3,186.29,38.55]
[1753499340626,0.1760212,186.3,186.29,37.86]
[1753499343827,0.1760212,186.3,186.29,38.55]
[1753499344728,0.1760212,186.3,186.29,46.87000603]
[1753499345040,0.03,186.31,186.3,6.2995]
[1753499345335,0.03,186.39,186.34,3.96903391]
[1753499345541,0.03,186.39,186.34,42.30568733]
[1753499345742,0.03,186.39,186.37,2.41523391]
[1753499346042,0.03,186.39,186.37,46.11747139]
[1753499346245,0.03,186.39,186.37,70.1559785]
[1753499346748,0.03,186.39,186.37,71.50856209]
[1753499349949,0.03,186.39,186.37,54.43955498]
[1753499350931,0.03,186.39,186.37,87.93656704]
[1753499351151,0.03,186.39,186.37,128.9478175]
[1753499351534,0.03,186.39,186.37,129.6178175]
[1753499352247,0.03,186.39,186.37,134.98348794]
[1753499354639,0.03,186.39,186.37,134.31348794]
[1753499355254,0.03,186.39,186.37,134.98348794]
[1753499356737,0.03,186.39,186.37,128.9478175]
[1753499357153,0.71,186.38,186.37,87.4]
[1753499357361,0.71,186.38,186.35,3.7678175]
[1753499357574,0.71,186.38,186.36,37.78]
[1753499358144,6.07550404,186.38,186.36,37.78]
[1753499358460,0.68,186.37,186.36,37.78]
[1753499359945,0.03,186.38,186.36,37.78]
[1753499360146,0.71,186.38,186.37,37.78]
[1753499362971,0.03,186.38,186.37,37.76]
[1753499366947,0.71,186.38,186.37,37.76]
[1753499367472,0.03,186.38,186.37,37.76]
[1753499369572,0.03,186.38,186.37,47.56348794]
[1753499369780,0.03,186.38,186.37,135.50005498]
[1753499369948,0.03,186.38,186.37,134.96348794]
[1753499372176,0.03,186.38,186.37,152.03249505]
[1753499375767,0.03,186.38,186.37,148.26467755]
[1753499375946,0.03,186.38,186.37,134.96348794]
[1753499376347,0.03,186.38,186.37,91.1678175]
[1753499376582,0.03,186.38,186.37,134.29348794]
[1753499377085,0.03,186.38,186.37,96.53348794]
[1753499377264,0.03,186.38,186.37,134.83005498]
[1753499377465,0.03,186.38,186.37,134.29348794]
[1753499380673,0.03,186.38,186.37,96.53348794]
[1753499380875,0.03,186.38,186.37,134.83005498]
[1753499381075,0.03,186.38,186.37,134.29348794]
[1753499381261,0.03,186.38,186.37,96.53348794]
[1753499381468,0.03,186.38,186.37,134.83005498]
[1753499381679,0.03,186.38,186.37,134.29348794]
[1753499381982,0.03,186.38,186.37,134.96348794]
[1753499384872,0.71,186.38,186.37,134.29348794]
[1753499385282,0.03,186.38,186.37,134.29348794]
[1753499386770,0.71,186.38,186.37,128.9078175]
[1753499387969,0.03,186.38,186.37,134.27348794]
[1753499394889,0.03,186.38,186.37,128.9078175]
[1753499395123,0.71,186.38,186.37,134.27348794]
[1753499395398,0.03,186.38,186.37,134.27348794]
[1753499398085,0.03,186.38,186.37,134.94348794]
[1753499400196,0.03,186.38,186.37,134.27348794]
[1753499400403,0.71,186.38,186.37,125.14]
[1753499401408,0.71,186.38,186.35,0.06]
[1753499401581,0.71,186.38,186.36,37.74]
[1753499403906,0.03,186.38,186.36,46.87376656]
[1753499404216,0.03,186.38,186.37,4.4378175]
[1753499406081,0.03,186.38,186.37,9.80348794]
[1753499406507,0.03,186.38,186.37,97.20348794]
[1753499406893,0.03,186.38,186.37,93.97223748]
[1753499407086,0.03,186.38,186.37,97.74005498]
[1753499408078,0.03,186.38,186.37,93.97223748]
[1753499408283,0.03,186.38,186.37,97.74005498]
[1753499411809,0.03,186.38,186.37,97.07005498]
[1753499411982,0.69,186.38,186.37,97.07005498]
[1753499412613,0.03,186.38,186.37,97.07005498]
[1753499414006,0.69,186.38,186.37,87.93656704]
[1753499414217,0.69,186.38,186.37,87.4]
[1753499415015,0.69,186.38,186.37,125.12]
[1753499415714,0.69,186.38,186.35,0.06]
[1753499415908,0.69,186.38,186.36,37.72]
[1753499416693,0.66,186.37,186.36,37.72]
[1753499418511,0.66,186.37,186.35,0.06]
[1753499418818,6.02569466,186.37,186.35,0.06]
[1753499419003,6.02569466,186.37,186.36,37.72]
[1753499419203,9.79351216,186.37,186.36,37.72]
[1753499420919,4.4278175,186.37,186.36,37.72]
[1753499428317,3.7678175,186.37,186.36,37.72]
[1753499428510,3.7978175,186.38,186.36,37.72]
[1753499429521,4.4578175,186.38,186.36,37.72]
[1753499429892,0.69,186.38,186.36,37.72]
[1753499430311,4.4578175,186.38,186.36,37.72]
[1753499432809,3.7978175,186.38,186.36,38.44]
[1753499434125,3.7978175,186.38,186.35,0.06]
[1753499434304,3.7978175,186.38,186.36,37.72]
[1753499435310,4.4578175,186.38,186.36,37.72]
[1753499435621,3.7678175,186.37,186.36,37.72]
[1753499440901,2.41392236,186.37,186.36,37.72]
[1753499441711,3.15392236,186.38,186.36,37.72]
[1753499442425,2.44392236,186.38,186.36,38.39]
[1753499442923,3.12392236,186.37,186.36,37.72]
[1753499445130,2.44392236,186.38,186.36,38.39]
[1753499445710,2.44392236,186.38,186.35,0.06]
[1753499445914,3.15392236,186.38,186.36,37.7]
[1753499452251,2.44392236,186.38,186.36,38.37]
[1753499452714,2.44392236,186.38,186.36,37.7]
[1753499453232,3.15392236,186.38,186.36,37.7]
[1753499454026,2.44392236,186.38,186.36,37.7]
[1753499454209,0.03,186.38,186.37,0.67]
[1753499456214,0.03,186.38,186.36,37.7]
[1753499457147,3.12392236,186.37,186.36,37.7]
[1753499462269,0.71,186.37,186.36,37.7]
[1753499462442,2.44392236,186.38,186.36,38.37]
[1753499462697,0.03,186.38,186.37,0.67]
[1753499471069,0.03,186.38,186.36,38.42]
[1753499471449,4.52094445,186.38,186.36,37.7]
[1753499471652,0.72,186.37,186.36,37.7]
[1753499471955,4.52094445,186.38,186.36,37.7]
[1753499474073,9.88638857,186.38,186.36,37.7]
[1753499474557,4.49094445,186.37,186.36,37.7]
[1753499475972,3.77094445,186.37,186.36,37.7]
[1753499476553,0.03,186.38,186.36,38.42]
[1753499476753,0.03,186.38,186.37,0.72]
[1753499478173,3.80094445,186.38,186.36,37.7]
[1753499478746,9.16643697,186.38,186.36,37.7]
[1753499478972,0.72,186.37,186.36,37.7]
[1753499479549,9.16643697,186.38,186.36,37.7]
[1753499479863,9.88643697,186.38,186.36,37.7]
[1753499480879,3.77094445,186.37,186.35,0.06]
[1753499481060,3.77094445,186.36,186.35,0.06]
[1753499481376,4.49094445,186.36,186.35,37.74]
[1753499481958,0.72,186.36,186.35,37.74]
[1753499482168,4.49094445,186.36,186.35,37.74]
[1753499486786,3.13443375,186.36,186.35,37.74]
[1753499486987,2.41443375,186.36,186.35,37.74]
[1753499487484,7.78039211,186.36,186.35,37.74]
[1753499489680,7.78039211,186.36,186.35,37.72]
[1753499491392,8.50039211,186.36,186.35,37.72]
[1753499491683,8.50039211,186.36,186.35,0.06]
[1753499491890,8.50039211,186.36,186.35,37.72]
[1753499492089,8.50039211,186.36,186.35,0.06]
[1753499492278,8.50039211,186.36,186.35,37.72]
[1753499501103,25.28507608,186.36,186.35,0.06]
[1753499501285,32.92157826,186.36,186.35,0.06]
[1753499501805,32.9215468,186.36,186.35,0.06]
[1753499502681,25.28507608,186.36,186.35,0.06]
[1753499504002,28.8997839,186.36,186.35,0.06]
[1753499504401,25.28507608,186.36,186.35,0.06]
[1753499505303,28.89782662,186.36,186.35,0.06]
[1753499505482,25.28507608,186.36,186.35,0.06]
[1753499517514,24.56507608,186.36,186.35,0.06]
[1753499518018,25.25507608,186.36,186.35,0.06]
[1753499520215,24.56507608,186.36,186.35,0.73]
[1753499520599,24.56507608,186.36,186.35,0.06]
[1753499523021,25.25507608,186.36,186.35,0.06]
[1753499526198,28.86750788,186.36,186.35,0.06]
[1753499527526,12.08282391,186.36,186.35,0.06]
[1753499527709,25.25507608,186.36,186.35,0.06]
[1753499528023,28.86750788,186.36,186.35,0.06]
[1753499528896,28.89750788,186.36,186.35,0.06]
[1753499530018,28.20750788,186.36,186.35,0.06]
[1753499530924,11.42282391,186.36,186.35,0.06]
[1753499531103,24.59507608,186.36,186.35,0.06]
[1753499531306,28.20750788,186.36,186.35,0.06]
[1753499532030,28.87750788,186.36,186.35,0.06]
[1753499533506,32.89278412,186.36,186.35,0.06]
[1753499535001,30.47835037,186.36,186.35,0.06]
[1753499535201,32.89278412,186.36,186.35,0.06]
[1753499535427,16.10810015,186.36,186.35,0.06]
[1753499535629,12.49566835,186.36,186.35,0.06]
[1753499535829,16.10810015,186.36,186.35,0.06]
[1753499536331,16.10948664,186.36,186.35,0.06]
[1753499539137,12.49705484,186.36,186.35,0.06]
[1753499539427,16.10948664,186.36,186.35,0.06]
[1753499539802,16.11115448,186.36,186.35,0.06]
[1753499540016,15.44115448,186.36,186.35,0.06]
[1753499541223,28.61340665,186.36,186.35,0.77]
[1753499541411,32.22583845,186.36,186.35,0.77]
[1753499541930,32.22583845,186.36,186.35,0.06]
[1753499542732,32.89583845,186.36,186.35,0.06]
[1753499545131,32.90425716,186.36,186.35,0.06]
[1753499545811,26.0,186.33,186.32,0.71]
[1753499546006,29.62085051,186.33,186.32,0.71]
[1753499546519,32.03528426,186.33,186.32,0.71]
[1753499546917,37.40210656,186.33,186.32,0.71]
[1753499547125,38.07210656,186.33,186.31,0.06]
[1753499547432,6.03528426,186.32,186.31,0.06]
[1753499547803,6.03528426,186.32,186.31,0.77]
[1753499548810,11.4023946,186.32,186.31,0.77]
[1753499549739,11.4023946,186.32,186.31,0.06]
[1753499549932,11.4023946,186.32,186.31,0.77]
[1753499552559,11.4023946,186.32,186.31,0.06]
[1753499553515,28.18707857,186.32,186.31,0.06]
[1753499553715,28.85707857,186.32,186.31,0.06]
[1753499554847,32.88240467,186.32,186.31,0.06]
[1753499556827,30.46797092,186.32,186.31,0.06]
[1753499557036,42.54013967,186.32,186.31,0.06]
[1753499557243,32.88240467,186.32,186.31,0.06]
[1753499559650,32.21240467,186.32,186.31,0.06]
[1753499560150,32.89240467,186.32,186.31,0.06]
[1753499560322,32.88944815,186.32,186.31,0.06]
[1753499563357,32.88816713,186.32,186.31,0.06]
[1753499565635,70.48816713,186.32,186.31,0.06]
[1753499567792,42.78468397,186.3,186.29,0.06]
[1753499568064,58.47770323,186.3,186.29,0.06]
[1753499568233,59.15770323,186.3,186.29,0.06]
[1753499569168,64.52538975,186.3,186.29,0.06]
[1753499573253,54.18765475,186.3,186.29,0.06]
[1753499573845,54.18266929,186.3,186.29,0.06]
[1753499576553,54.86266929,186.3,186.29,0.06]
[1753499576973,54.18266929,186.3,186.29,0.06]
[1753499577172,54.86266929,186.3,186.29,0.06]
[1753499580848,54.18266929,186.3,186.29,0.06]
[1753499582558,54.86266929,186.3,186.29,0.06]
[1753499584779,102.12040429,186.3,186.29,0.06]
[1753499584952,102.12040429,186.3,186.29,1e-08]
[1753499585153,108.93805108,186.3,186.29,1e-08]
[1753499585349,108.93805108,186.3,186.27,0.06]
[1753499585554,19.19911772,186.28,186.27,0.06]
[1753499585865,64.43261111,186.28,186.27,0.06]
[1753499586067,65.13261111,186.28,186.27,0.06]
[1753499586781,70.50087394,186.28,186.27,0.06]
[1753499587478,42.78468397,186.26,186.25,0.06]
[1753499587687,90.43261111,186.26,186.25,0.06]
[1753499587867,91.13261111,186.26,186.25,0.06]
[1753499588262,16.78468397,186.25,186.23,0.06]
[1753499588584,6.43206209,186.24,186.23,0.06]
[1753499588765,22.15438809,186.23,186.21,0.06]
[1753499588963,47.64434419,186.22,186.21,0.06]
[1753499589175,48.34434419,186.22,186.21,0.06]
[1753499589374,65.12902816,186.22,186.21,1e-08]
[1753499589978,5.37028086,186.21,186.2,0.06]
[1753499590175,11.80234295,186.21,186.2,0.75]
[1753499590482,9.3879092,186.21,186.2,0.75]
[1753499590691,7.78471461,186.21,186.2,0.75]
[1753499591368,7.78471461,186.21,186.2,0.06]
[1753499591882,11.79278789,186.21,186.2,0.06]
[1753499592078,7.78471461,186.21,186.2,0.06]
[1753499592666,7.78471461,186.21,186.2,0.75]
[1753499593871,5.3700354,186.22,186.2,0.75]
[1753499594276,33.78446915,186.22,186.2,0.75]
[1753499595995,2.41443375,186.21,186.2,0.75]
[1753499602969,26.0,186.22,186.2,0.75]
[1753499603292,2.41443375,186.21,186.2,0.06]
[1753499604777,2.41443375,186.21,186.2,0.75]
[1753499606671,2.41443375,186.25,186.2,0.75]
[1753499606976,2.41443375,186.26,186.2,8.5349466]
[1753499607298,2.41443375,186.26,186.22,6.2033]
[1753499607480,2.41443375,186.26,186.23,0.69]
[1753499607682,2.41443375,186.26,186.22,6.2033]
[1753499607882,2.41443375,186.26,186.24,0.69]
[1753499608885,7.78330064,186.26,186.22,6.2033]
[1753499609196,2.41443375,186.25,186.23,0.69]
[1753499610392,6.06886689,186.26,186.23,0.69]
[1753499610594,8.48330064,186.26,186.23,0.69]
[1753499610893,3.11443375,186.25,186.22,6.2033]
[1753499611279,3.11443375,186.25,186.22,6.8933]
[1753499611919,2.41443375,186.25,186.22,6.2033]
[1753499612091,2.41443375,186.25,186.23,0.69]
[1753499612399,7.78330064,186.26,186.23,0.69]
[1753499612596,7.78330064,186.26,186.24,0.69]
[1753499612822,28.41443375,186.27,186.24,0.69]
[1753499613597,2.41443375,186.26,186.24,0.69]
[1753499615996,7.7832747,186.26,186.24,0.69]
[1753499616204,8.4932747,186.26,186.22,6.8733]
[1753499617102,7.7832747,186.26,186.22,6.8733]
[1753499617280,0.71,186.25,186.22,6.8733]
[1753499617481,7.7832747,186.26,186.23,0.67]
[1753499617696,7.8132747,186.26,186.23,0.67]
[1753499618602,2.41443375,186.25,186.22,6.2033]
[1753499618797,3.12443375,186.25,186.22,6.8733]
[1753499618996,2.41443375,186.23,186.2,0.06]
[1753499619198,0.71,186.24,186.2,0.06]
[1753499619199,2.41443375,186.22,186.2,0.06]
[1753499619383,2.41443375,186.22,186.2,0.73]
[1753499619799,2.41443375,186.23,186.2,0.73]
[1753499621501,2.41443375,186.22,186.2,0.73]
[1753499623911,2.41443375,186.23,186.2,0.73]
[1753499624284,3.12443375,186.23,186.2,0.73]
[1753499625098,2.41443375,186.23,186.2,0.06]
[1753499625408,0.71,186.22,186.2,0.06]
[1753499625618,3.12443375,186.22,186.2,0.06]
[1753499626311,0.71,186.21,186.2,0.06]
[1753499626692,2.41443375,186.22,186.2,0.06]
[1753499626893,3.12443375,186.22,186.2,0.06]
[1753499627587,2.41443375,186.22,186.2,0.06]
[1753499627790,2.41443375,186.22,186.2,0.73]
[1753499628189,3.12443375,186.23,186.2,0.73]
[1753499629017,3.12443375,186.23,186.2,0.06]
[1753499630298,2.41443375,186.23,186.2,0.06]
[1753499630496,0.71,186.22,186.2,0.06]
[1753499635918,2.41443375,186.23,186.2,0.73]
[1753499636122,3.12443375,186.23,186.2,0.73]
[1753499636826,2.41443375,186.24,186.21,0.67]
[1753499637319,3.12443375,186.24,186.21,0.67]
[1753499638411,3.12443375,186.24,186.2,0.06]
[1753499638717,3.12443375,186.24,186.2,0.73]
[1753499639030,0.71,186.24,186.2,5.43051856]
[1753499639225,8.52334075,186.26,186.21,0.67]
[1753499639525,0.71,186.25,186.21,0.67]
[1753499639713,0.71,186.25,186.22,38.23]
[1753499641516,3.12443375,186.25,186.22,38.23]
[1753499643117,0.71,186.25,186.22,38.23]
[1753499643511,0.03,186.26,186.24,2.41443375]
[1753499643713,0.03,186.26,186.25,40.64443375]
[1753499644833,0.03,186.26,186.25,38.23]
[1753499645541,0.74,186.26,186.24,37.56]
[1753499645845,3.09443375,186.25,186.24,37.56]
[1753499646213,0.68,186.25,186.24,37.56]
[1753499646618,3.12443375,186.26,186.24,37.56]
[1753499647116,0.71,186.26,186.24,37.56]
[1753499647326,0.03,186.26,186.24,37.56]
[1753499647938,0.71,186.26,186.24,37.56]
[1753499648730,0.03,186.26,186.24,37.56]
[1753499649620,0.71,186.26,186.24,37.56]
[1753499650039,0.68,186.25,186.24,37.56]
[1753499650538,3.09443375,186.25,186.24,37.56]
[1753499651113,8.46356126,186.25,186.24,37.56]
[1753499656543,8.46356126,186.25,186.2,0.75]
[1753499656741,2.41443375,186.24,186.21,37.54]
[1753499656940,3.09443375,186.24,186.21,37.54]
[1753499657242,2.41443375,186.22,186.21,37.54]
[1753499657441,3.09443375,186.22,186.2,0.06]
[1753499657643,2.41443375,186.21,186.2,0.06]
[1753499658143,3.09443375,186.22,186.2,0.06]
[1753499658522,8.46449414,186.22,186.2,0.06]
[1753499659033,7.78449414,186.22,186.2,0.75]
[1753499659645,7.78449414,186.22,186.2,0.06]
[1753499660825,8.46449414,186.22,186.2,0.06]
[1753499661037,3.09443375,186.21,186.2,0.06]
[1753499661341,8.46471461,186.21,186.2,0.06]
[1753499662545,7.78471461,186.21,186.2,0.06]
[1753499663043,2.41443375,186.21,186.2,0.06]
[1753499663246,7.78448352,186.22,186.2,0.06]
[1753499663442,8.46448352,186.22,186.2,0.06]
[1753499673489,0.68,186.21,186.2,0.06]
[1753499674386,7.78448352,186.22,186.2,0.06]
[1753499674573,8.46448352,186.22,186.2,0.06]
[1753499675390,3.09443375,186.21,186.2,0.06]
[1753499676063,2.41443375,186.21,186.2,0.06]
[1753499677191,8.45448352,186.22,186.2,0.06]
[1753499679378,0.67,186.21,186.2,0.06]
[1753499680094,7.78448352,186.22,186.2,0.06]
[1753499680298,8.45448352,186.22,186.2,0.06]
[1753499681494,6.04004977,186.22,186.2,0.06]
[1753499681687,3.08443375,186.22,186.2,0.06]
[1753499682199,3.11443375,186.22,186.2,0.06]
[1753499683003,0.03,186.22,186.2,0.74]
[1753499686588,0.03,186.22,186.2,0.06]
[1753499687380,0.03,186.22,186.2,0.74]
[1753499687983,0.03,186.22,186.21,37.52]
[1753499688204,26.03,186.22,186.21,37.52]
[1753499688506,26.03,186.22,186.21,38.2]
[1753499688893,0.03,186.22,186.21,38.2]
[1753499695999,0.03,186.22,186.21,45.98471461]
[1753499696504,0.03,186.22,186.21,46.52174269]
[1753499699395,0.03,186.22,186.21,133.92174269]
[1753499699705,0.03,186.22,186.21,133.38471461]
[1753499701231,0.03,186.22,186.21,150.45372172]
[1753499701532,0.03,186.26,186.25,25.49424086]
[1753499701702,0.03,186.26,186.25,150.93115361]
[1753499701903,0.03,186.26,186.25,151.07424086]
[1753499702104,0.03,186.29,186.26,18.69370711]
[1753499702298,0.03,186.29,186.28,19.48344086]
[1753499702703,0.03,186.29,186.28,24.85170369]
[1753499702911,0.03,186.29,186.28,26.88853847]
[1753499703256,0.03,186.33,186.32,26.0]
[1753499703425,0.03,186.33,186.32,86.48168667]
[1753499703609,0.03,186.33,186.32,87.16168667]
[1753499703811,0.03,186.33,186.32,70.09267956]
[1753499704538,0.03,186.33,186.32,69.41267956]
[1753499705031,0.7,186.33,186.32,37.48]
[1753499707518,0.03,186.33,186.32,37.48]
[1753499708538,0.03,186.33,186.32,41.94126853]
[1753499709023,0.03,186.33,186.32,38.17]
[1753499710022,0.03,186.33,186.32,43.53711034]
[1753499710216,0.03,186.33,186.32,44.07382137]
[1753499710428,0.03,186.33,186.32,47.8450899]
[1753499711244,0.03,186.33,186.32,135.2450899]
[1753499711443,0.03,186.33,186.32,134.70837887]
[1753499711843,0.03,186.33,186.32,130.93711034]
[1753499712032,0.03,186.33,186.32,134.70837887]
[1753499712344,0.03,186.33,186.32,128.65126853]
[1753499713370,0.03,186.33,186.32,124.88]
[1753499713565,0.03,186.33,186.32,125.57]
[1753499713863,0.03,186.33,186.32,129.34126853]
[1753499715054,0.03,186.33,186.32,134.70837887]
[1753499717964,0.03,186.33,186.32,134.01837887]
[1753499718169,0.73,186.33,186.32,87.4]
[1753499718368,0.73,186.33,186.32,124.86]
[1753499721597,9.86809083,186.33,186.32,37.46]
[1753499723567,9.86809083,186.33,186.31,37.46]
[1753499723769,4.47126853,186.32,186.31,37.46]
[1753499723971,3.77126853,186.32,186.31,37.46]
[1753499724164,4.47126853,186.32,186.31,37.46]
[1753499725897,9.83837887,186.32,186.31,37.46]
[1753499726995,9.83837887,186.32,186.3,0.06]
[1753499727199,9.13866695,186.31,186.3,0.06]
[1753499727386,9.83866695,186.31,186.3,0.06]
[1753499730492,6.06739842,186.31,186.3,0.06]
[1753499730802,9.83866695,186.31,186.3,0.06]
[1753499730981,6.06739842,186.31,186.3,0.06]
[1753499731299,9.83866695,186.31,186.3,0.06]
[1753499732398,26.62335092,186.31,186.3,0.06]
[1753499734703,9.83866695,186.31,186.3,0.06]
[1753499735512,9.83866695,186.31,186.27,37.02]
[1753499735816,3.77126853,186.28,186.27,37.73]
[1753499736108,3.77126853,186.29,186.27,37.73]
[1753499736311,3.77126853,186.29,186.28,0.71]
[1753499736495,29.77126853,186.29,186.28,0.71]
[1753499736900,26.0,186.29,186.28,0.71]
[1753499737112,29.77126853,186.29,186.28,0.71]
[1753499737301,3.77126853,186.3,186.28,0.71]
[1753499737615,3.77126853,186.3,186.29,0.71]
[1753499737826,4.43126853,186.3,186.27,37.02]
[1753499738003,3.77126853,186.29,186.27,37.02]
[1753499738199,6.0276911,186.3,186.27,37.02]
[1753499738405,3.77126853,186.28,186.27,37.02]
[1753499738722,4.43126853,186.28,186.27,37.02]
[1753499738913,4.43126853,186.28,186.26,0.06]
[1753499739107,4.43126853,186.27,186.26,0.06]
[1753499739617,4.43126853,186.27,186.24,37.02]
[1753499739792,3.77126853,186.25,186.24,37.02]
[1753499742999,3.77126853,186.25,186.24,36.52]
[1753499746024,3.77126853,186.25,186.24,36.02]
[1753499746524,3.77126853,186.26,186.24,36.73]
[1753499746822,3.77126853,186.26,186.25,0.71]
[1753499747826,3.77126853,186.3,186.25,0.71]
[1753499747995,29.77126853,186.3,186.25,0.71]
[1753499748513,3.77126853,186.3,186.25,6.07895416]
[1753499748704,3.77126853,186.3,186.26,0.71]
[1753499749521,3.77126853,186.29,186.25,5.36895416]
[1753499749708,4.43126853,186.29,186.25,0.71]
[1753499749906,3.77126853,186.29,186.25,0.71]
[1753499750219,4.43126853,186.28,186.24,36.02]
[1753499750708,4.43126853,186.28,186.25,0.71]
[1753499751312,0.66,186.28,186.25,0.71]
[1753499751515,4.43126853,186.28,186.26,37.46]
[1753499751712,3.77126853,186.28,186.26,37.46]
[1753499752825,6.02822198,186.29,186.26,37.46]
[1753499753128,4.43126853,186.28,186.27,37.46]
[1753499753329,0.66,186.28,186.27,37.46]
[1753499753529,4.43126853,186.28,186.27,37.46]
[1753499754431,3.77126853,186.28,186.27,37.46]
[1753499754723,9.13949051,186.29,186.27,37.46]
[1753499755029,3.77126853,186.29,186.27,37.46]
[1753499756234,4.43126853,186.29,186.27,37.46]
[1753499756436,9.79926557,186.29,186.27,37.46]
[1753499756620,0.66,186.28,186.27,37.46]
[1753499757633,9.79953136,186.28,186.27,37.46]
[1753499757934,9.79953136,186.28,186.2,0.06]
[1753499758141,3.77126853,186.24,186.21,38.17]
[1753499758631,0.66,186.26,186.22,0.71]
[1753499758837,3.77126853,186.25,186.21,37.46]
[1753499759043,4.43126853,186.26,186.23,0.71]
[1753499759248,3.77126853,186.26,186.23,0.71]
[1753499759813,3.77126853,186.28,186.23,0.71]
[1753499760228,4.43126853,186.28,186.23,0.71]
[1753499760442,4.43126853,186.28,186.22,3.77126853]
[1753499760742,4.43126853,186.28,186.24,0.71]
[1753499760934,4.43126853,186.28,186.25,37.46]
[1753499761542,4.43126853,186.28,186.25,38.17]
[1753499763147,4.43126853,186.27,186.25,37.46]
[1753499763437,0.66,186.26,186.25,37.46]
[1753499764020,3.77126853,186.27,186.25,37.46]
[1753499764220,4.43126853,186.27,186.25,37.46]
[1753499764539,3.77126853,186.26,186.25,37.46]
[1753499764718,4.43126853,186.27,186.25,37.46]
[1753499765143,0.66,186.27,186.25,37.46]
[1753499765335,3.77126853,186.27,186.25,37.46]
[1753499765537,3.77126853,186.27,186.25,38.17]
[1753499765944,4.44126853,186.27,186.25,37.46]
[1753499766442,3.77126853,186.26,186.25,37.46]
[1753499766757,4.44126853,186.26,186.25,37.46]
[1753499767320,4.44126853,186.26,186.2,88.16]
[1753499767626,3.77126853,186.24,186.21,38.16]
[1753499767826,3.77126853,186.24,186.22,0.7]
[1753499768146,3.77126853,186.24,186.23,0.7]
[1753499768446,3.77126853,186.24,186.21,37.46]
[1753499768649,3.77126853,186.24,186.22,0.7]
[1753499769537,3.77126853,186.24,186.21,37.46]
[1753499769744,9.81071681,186.24,186.21,37.46]
[1753499769945,4.44126853,186.24,186.21,37.46]